fUSD/lending_fUSD_20260208
["ID","MTS","AMOUNT","RATE_DAILY","PERIOD"]
[404769430,1770520249647,-384.63394623,0.00044054,7]
[404769431,1770520249657,-256.34429248,0.00044054,7]
[404769432,1770520249666,-398.86540225,0.00044054,7]
[404769433,1770520249675,-209.40437684,0.00044054,7]
[404769434,1770520249685,-500.0,0.00044054,7]
[404769435,1770520249695,-217.15233878,0.00044054,7]
[404769436,1770520249705,-518.6320524,0.00044054,7]
[404769437,1770520249719,-225.18697532,0.00044054,7]
[404769438,1770520249730,-233.51889341,0.00044054,7]
[404769439,1770520249741,-242.15909246,0.00044054,7]
[404769440,1770520249753,-251.11897888,0.00044054,7]
[404769441,1770520249763,-260.4103811,0.00044054,7]
[404769442,1770520249774,-270.0455652,0.00044054,7]
[404769443,1770520249785,-280.03725112,0.00044054,7]
[404769444,1770520249796,-290.39862941,0.00044054,7]
[404769445,1770520249806,-200.0,0.0004407,2]
[404769446,1770520249819,-500.0,0.00044082,60]
[404769447,1770520249829,-500.0,0.00044082,60]
[404769448,1770520249841,-500.0,0.00044082,60]
[404769449,1770520249851,-500.0,0.00044082,60]
[404769450,1770520249862,-500.0,0.00044082,60]
[404769451,1770520249873,-500.0,0.00044082,60]
[404769452,1770520249884,-500.0,0.00044082,60]
[404769453,1770520249895,-500.0,0.00044082,60]
[404769454,1770520249909,-500.0,0.00044082,60]
[404769455,1770520249920,-500.0,0.00044082,60]
[404769456,1770520249931,-177.02396097,0.00044082,14]
[404769457,1770520249941,-313.16734478,0.00044082,2]
[404769458,1770520249954,-2465.01829214,0.00044082,2]
[404769459,1770520249966,-440.55799967,0.00044082,28]
[404769460,1770520249978,-1000.0,0.000441,120]
[404769461,1770520249989,-253.0,0.000441,45]
[404769462,1770520250000,-1000.0,0.0004411,30]
[404769463,1770520250011,-769.54,0.00044125,30]
[404769464,1770520250021,-765.89,0.00044125,120]
[404769465,1770520250031,-659.81,0.00044125,45]
[404769466,1770520250042,-659.81,0.00044125,45]
[404769467,1770520250053,-659.81,0.00044125,45]
[404769468,1770520250063,-659.81,0.00044125,45]
[404769469,1770520250073,-659.81,0.00044125,45]
[404769470,1770520250083,-659.96560932,0.00044125,45]
[404769471,1770520250093,-9839.3106323,0.00044126,2]
[404769472,1770520250106,-1159.3690557,0.00044126,2]
[404769473,1770520250116,-218555.5023036,0.00044126,2]
[404769474,1770520250126,-47622.3657097,0.00044126,2]
[404769475,1770520250142,-154.68288,0.00044126,120]
[404769476,1770520250157,-151.0,0.00044126,120]
[404769477,1770520250168,-448.011239,0.00044126,120]
[404769478,1770520250179,-448.011239,0.00044126,120]
[404769479,1770520250191,-448.011239,0.00044126,120]
[404769480,1770520250203,-448.011239,0.00044126,120]
[404769481,1770520250214,-285.425079,0.00044126,120]
[404769482,1770520250229,-285.425079,0.00044126,120]
[404769483,1770520250239,-285.425079,0.00044126,120]
[404769484,1770520250250,-285.425079,0.00044126,120]
[404769485,1770520250261,-32712.40497904,0.00044126,2]
[404769486,1770520250579,-300.0,0.00039765,2]
[404769487,1770520250589,-3401.51286246,0.00044126,2]
[404769488,1770520250601,-500.0,0.00044127,55]
[404769489,1770520250611,-250.0,0.00044137,45]
[404769490,1770520250622,-769.54,0.00044137,30]
[404769491,1770520250632,-769.54,0.00044137,30]
[404769492,1770520250643,-769.54,0.00044137,30]
[404769493,1770520250654,-769.54,0.00044137,30]
[404769494,1770520250665,-769.58398493,0.00044137,30]
[404769495,1770520250675,-765.89,0.00044137,120]
[404769496,1770520250685,-765.89,0.00044137,120]
[404769497,1770520250695,-765.89,0.00044137,120]
[404769498,1770520250705,-765.89,0.00044137,120]
[404769499,1770520250714,-766.10845873,0.00044137,120]
[404769500,1770520250725,-200.0,0.00044138,7]
[404769501,1770520250735,-152.0,0.00044138,14]
[404769502,1770520250744,-153.47233815,0.00044138,14]
[404769503,1770520250754,-200.0,0.00044138,7]
[404769504,1770520250763,-200.0,0.00044138,7]
[404769505,1770520250774,-200.0,0.00044138,7]
[404769506,1770520250783,-16613.53865976,0.00044146,30]
[404769507,1770520250882,-348.37,0.00033907,14]
[404769508,1770520250892,-300.0,0.00039765,2]
[404769509,1770520250901,-300.0,0.00039765,2]
[404769510,1770520250910,-500.0,0.00041041,2]
[404769511,1770520250920,-500.0,0.00043835,120]
[404769512,1770520250929,-500.0,0.00043835,120]
[404769513,1770520250938,-301.1433787,0.00044054,7]
[404769514,1770520250947,-34032.46134024,0.00044146,30]
[404769515,1770520250957,-259.635033,0.00044146,120]
[404769516,1770520250966,-151.0,0.00044146,120]
[404769517,1770520250985,-151.0,0.00044146,120]
[404769518,1770520250996,-151.0,0.00044146,120]
[404769519,1770520251006,-151.0,0.00044146,120]
[404769520,1770520251015,-259.635033,0.00044146,120]
[404769521,1770520251025,-259.635033,0.00044146,120]
[404769522,1770520251035,-151.0,0.00044146,120]
[404769523,1770520251044,-259.635033,0.00044146,120]
[404769524,1770520251056,-151.0,0.00044146,120]
[404769525,1770520251066,-151.0,0.00044146,120]
[404769526,1770520251077,-151.0,0.00044146,120]
[404769527,1770520251088,-151.0,0.00044146,120]
[404769528,1770520251099,-151.0,0.00044146,120]
[404769529,1770520251110,-151.0,0.00044146,120]
[404769530,1770520251121,-151.0,0.00044146,120]
[404769531,1770520251132,-158.194852,0.00044146,120]
[404769532,1770520251143,-151.0,0.00044146,120]
[404769533,1770520251158,-151.0,0.00044146,120]
[404769534,1770520251168,-151.0,0.00044146,120]
[404769535,1770520251179,-151.0,0.00044146,120]
[404769536,1770520251190,-151.0,0.00044146,120]
[404769537,1770520251204,-151.0,0.00044146,120]
[404769538,1770520251215,-1387.0,0.00044151,60]
[404769539,1770520251228,-561.0,0.00044151,60]
[404769540,1770520251237,-2335.55,0.00044158,120]
[404769541,1770520251246,-431.0,0.0004416,2]
[404769542,1770520251254,-151.0,0.00044164,120]
[404769543,1770520251263,-151.0,0.00044164,120]
[404769544,1770520251274,-151.0,0.00044164,120]
[404769545,1770520251284,-151.0,0.00044164,120]
[404769546,1770520251294,-188.780998,0.00044164,120]
[404769547,1770520251304,-300.0,0.0004417,3]
[404769548,1770520251313,-250.0,0.0004417,3]
[404769549,1770520251323,-301.26028957,0.0004417,3]
[404769550,1770520251333,-250.0,0.0004417,3]
[404769551,1770520251342,-451.92475362,0.0004417,3]
[404769552,1770520251352,-2000.0,0.0004417,120]
[404769553,1770520251361,-257.91778498,0.0004417,30]
[404769554,1770520251370,-267.46074303,0.0004417,55]
[404769555,1770520251380,-9032.85193814,0.00044171,30]
[404769556,1770520251396,-243.23907399,0.00043835,120]
[404769557,1770520251406,-2206.40878323,0.00044171,30]
[404769558,1770520251416,-3943.99691236,0.00044171,30]
[404769559,1770520251447,-589.15994815,0.00013698,2]
[404769560,1770520251456,-300.0,0.00039765,2]
[404769561,1770520251466,-7295.26380901,0.00044171,30]
[404769562,1770520251476,-11239.26072137,0.00044171,30]
[404769563,1770520251486,-11239.26072137,0.00044171,30]
[404769564,1770520251495,-6030.33383668,0.00044171,30]
[404769566,1770520520622,781.67,0.00035616,120]
[404769567,1770520547399,1000.0,0.00034798,120]
[404769576,1770521211121,799.963282,0.00015,14]
[404769577,1770521227434,408.64,0.00027397,30]
[404769578,1770521227652,408.64,0.00032232,30]
[404769579,1770521246892,175.15556915,0.00035365,30]
[404769580,1770521267642,500.0,0.00035,120]
[404769581,1770521298687,2000.0,0.00035,120]
[404769582,1770521414608,515.0,0.00035616,30]
[404769593,1770521431818,-166.66,0.00012617,2]
[404769594,1770521431828,-166.66,0.00012883,2]
[404769595,1770521431838,-166.66,0.00013149,2]
[404769596,1770521431848,-2615.41612631,0.000133,2]
[404769597,1770521431858,-65.10126477,0.0001339,2]
[404769598,1770521431869,-109.80974954,0.0001339,2]
[404769599,1770521431879,-166.66,0.00013414,2]
[404769600,1770521431888,-619.39886632,0.00013483,2]
[404769601,1770521431928,-296.04113368,0.00013483,2]
[404769602,1770521431938,-250.0,0.00013487,2]
[404769603,1770521431949,-250.0,0.00013502,2]
[404769604,1770521431960,-500.0,0.00013531,2]
[404769605,1770521431971,-178.34494049,0.00013597,2]
[404769606,1770521431982,-166.66,0.0001368,2]
[404769607,1770521431992,-1200.0,0.00013695,2]
[404769608,1770521432002,-300.0,0.00013695,2]
[404769609,1770521432012,-300.0,0.00013695,2]
[404769610,1770521432021,-661.21,0.00013699,2]
[404769611,1770521432031,-385.0,0.00013699,2]
[404769612,1770521432040,-267.36,0.00013699,2]
[404769613,1770521432049,-222.8,0.00013699,2]
[404769614,1770521432059,-773.63,0.00013699,2]
[404769615,1770521432069,-174.91101431,0.0001379,2]
[404769616,1770521432080,-150.0,0.0001379,2]
[404769617,1770521432090,-321.4634109,0.00013791,2]
[404769618,1770521432100,-23099.83653817,0.00013791,2]
[404769619,1770521432109,-177.02396102,0.00013791,2]
[404769620,1770521432118,-676.6568905,0.00013791,2]
[404769621,1770521432128,-7938.0,0.00013816,2]
[404769622,1770521432138,-500.0,0.00013816,2]
[404769623,1770521432147,-150.0,0.00013816,2]
[404769624,1770521432156,-166.26252615,0.00013825,2]
[404769625,1770521432166,-18142.48617654,0.00013825,2]
[404769626,1770521432175,-898.14558122,0.00013846,2]
[404769627,1770521432184,-3247.18763478,0.00013846,2]
[404769628,1770521432193,-9823.0,0.00013863,2]
[404769629,1770521432203,-7938.0,0.00013871,2]
[404769630,1770521432212,-500.0,0.00013871,2]
[404769631,1770521432221,-150.0,0.00013871,2]
[404769632,1770521432230,-193.31012055,0.00013881,2]
[404769633,1770521432239,-500.0,0.0001389,2]
[404769634,1770521432249,-297.54728819,0.0001389,2]
[404769635,1770521432257,-500.0,0.0001389,2]
[404769636,1770521432267,-500.0,0.0001389,2]
[404769637,1770521432276,-500.0,0.0001389,2]
[404769638,1770521432286,-500.0,0.0001389,2]
[404769639,1770521432295,-500.0,0.0001389,2]
[404769640,1770521432304,-500.0,0.0001389,2]
[404769641,1770521432313,-500.0,0.0001389,2]
[404769642,1770521432322,-500.0,0.0001389,2]
[404769643,1770521432331,-500.0,0.0001389,2]
[404769644,1770521432340,-500.0,0.0001389,2]
[404769645,1770521432350,-500.0,0.0001389,2]
[404769646,1770521432359,-500.0,0.0001389,2]
[404769647,1770521432368,-500.0,0.0001389,2]
[404769648,1770521432377,-500.0,0.0001389,2]
[404769649,1770521432387,-500.0,0.0001389,2]
[404769650,1770521432395,-500.0,0.0001389,2]
[404769651,1770521432404,-500.0,0.0001389,2]
[404769652,1770521432413,-500.0,0.0001389,2]
[404769653,1770521432422,-500.0,0.0001389,2]
[404769654,1770521432431,-500.0,0.0001389,2]
[404769655,1770521432440,-500.0,0.0001389,2]
[404769656,1770521432450,-500.0,0.0001389,2]
[404769657,1770521432459,-500.0,0.0001389,2]
[404769658,1770521432468,-500.0,0.0001389,2]
[404769659,1770521432477,-500.0,0.0001389,2]
[404769660,1770521432486,-500.0,0.0001389,2]
[404769661,1770521432495,-500.0,0.0001389,2]
[404769662,1770521432504,-500.0,0.0001389,2]
[404769663,1770521432513,-500.0,0.0001389,2]
[404769664,1770521432527,-500.0,0.0001389,2]
[404769665,1770521432536,-500.0,0.0001389,2]
[404769666,1770521432545,-500.0,0.0001389,2]
[404769667,1770521432554,-500.0,0.0001389,2]
[404769668,1770521432563,-500.0,0.0001389,2]
[404769669,1770521432572,-207.66721024,0.0001389,2]
[404769670,1770521432581,-500.0,0.0001389,2]
[404769671,1770521432590,-500.0,0.0001389,2]
[404769672,1770521432601,-500.0,0.0001389,2]
[404769673,1770521432610,-500.0,0.0001389,2]
[404769674,1770521432619,-500.0,0.0001389,2]
[404769675,1770521432628,-500.0,0.0001389,2]
[404769676,1770521432637,-500.0,0.0001389,2]
[404769677,1770521432645,-500.0,0.0001389,2]
[404769678,1770521432654,-500.0,0.0001389,2]
[404769679,1770521432663,-500.0,0.0001389,2]
[404769680,1770521432672,-500.0,0.0001389,2]
[404769681,1770521432682,-500.0,0.0001389,2]
[404769682,1770521432691,-470.7966981,0.0001389,2]
[404769683,1770521432700,-500.0,0.0001389,2]
[404769684,1770521432709,-500.0,0.0001389,2]
[404769685,1770521432718,-188.99747627,0.0001389,2]
[404769686,1770521432727,-500.0,0.0001389,2]
[404769687,1770521432737,-500.0,0.0001389,2]
[404769688,1770521432745,-500.0,0.0001389,2]
[404769689,1770521432755,-500.0,0.0001389,2]
[404769690,1770521432764,-500.0,0.0001389,2]
[404769691,1770521432773,-348.76135356,0.0001389,2]
[404769692,1770521432782,-500.0,0.0001389,2]
[404769693,1770521432792,-500.0,0.0001389,2]
[404769694,1770521432801,-369.64677389,0.0001389,2]
[404769695,1770521432811,-167.79278054,0.0001389,2]
[404769696,1770521432820,-274.53296645,0.0001389,2]
[404769697,1770521432829,-500.0,0.0001389,2]
[404769698,1770521432838,-500.0,0.0001389,2]
[404769699,1770521432847,-500.0,0.0001389,2]
[404769700,1770521432856,-500.0,0.0001389,2]
[404769701,1770521432866,-500.0,0.0001389,2]
[404769702,1770521432876,-500.0,0.0001389,2]
[404769703,1770521432885,-500.0,0.0001389,2]
[404769704,1770521432894,-500.0,0.0001389,2]
[404769705,1770521432903,-500.0,0.0001389,2]
[404769706,1770521432912,-500.0,0.0001389,2]
[404769707,1770521432921,-500.0,0.0001389,2]
[404769708,1770521432930,-500.0,0.0001389,2]
[404769709,1770521432939,-500.0,0.0001389,2]
[404769710,1770521432948,-500.0,0.0001389,2]
[404769711,1770521432958,-500.0,0.0001389,2]
[404769712,1770521432967,-500.0,0.0001389,2]
[404769713,1770521432975,-139312.22364217,0.00013891,2]
[404769714,1770521433013,-500.0,0.0001389,2]
[404769715,1770521433024,-7178.82711813,0.00013891,2]
[404769716,1770521433035,-993.486,0.00013891,2]
[404769718,1770521437928,-500.0,0.0001389,2]
[404769719,1770521437940,-500.0,0.0001389,2]
[404769720,1770521437949,-132.68254729,0.0001389,2]
[404769721,1770521437965,-367.31745271,0.0001389,2]
[404769722,1770521437974,-419.54042102,0.0001389,2]
[404769723,1770521437984,-45822.77222726,0.00013891,2]
[404769725,1770521439959,-2965.83353822,0.00013891,2]
[404769726,1770521440124,-238369.69105399,0.00013891,2]
[404769727,1770521440232,-2031681.79496026,0.00013891,2]
[404769728,1770521440291,-5668.37361862,0.00013891,2]
[404769729,1770521440307,-4201.69291148,0.00013891,2]
[404769730,1770521440319,-526.15548576,0.00013891,2]
[404769731,1770521440332,-1645.690204,0.00013891,2]
[404769740,1770521443718,-39909.98073578,0.00013891,2]
[404769741,1770521444579,-388.380008,0.00013891,2]
[404769742,1770521444590,-860.40500072,0.00013891,2]
[404769743,1770521444650,-98700.036718,0.00013891,2]
[404769760,1770521446058,-3609.06,0.00013891,2]
[404769761,1770521465605,500.0,0.00035616,30]
[404769762,1770521466243,500.0,0.00035616,30]
[404769763,1770521466933,500.0,0.00035616,30]
[404769764,1770521467429,500.0,0.00035616,30]
[404769765,1770521467542,500.0,0.00035616,30]
[404769766,1770521468038,500.0,0.00035616,30]
[404769767,1770521468370,500.0,0.00035616,30]
[404769768,1770521468678,500.0,0.00035616,30]
[404769769,1770521469005,500.0,0.00035616,30]
[404769770,1770521469303,500.0,0.00035616,30]
[404769771,1770521469605,191.35584024,0.00035616,30]
[404769772,1770521469924,500.0,0.00035616,30]
[404769773,1770521470526,500.0,0.00035616,30]
[404769774,1770521471151,500.0,0.00035616,30]
[404769775,1770521471756,500.0,0.00035616,30]
[404769776,1770521472655,500.0,0.00035616,30]
[404769777,1770521473011,500.0,0.00035616,30]
[404769778,1770521473702,518.6320524,0.00035616,30]
[404769779,1770521477929,3140.0,0.00035,120]
[404769780,1770521478478,151.0,0.00035616,30]
[404769781,1770521479099,151.0,0.00035616,30]
[404769782,1770521479749,151.0,0.00035616,30]
[404769783,1770521480361,151.0,0.00035616,30]
[404769784,1770521480980,151.0,0.00035616,30]
[404769785,1770521481591,151.0,0.00035616,30]
[404769786,1770521482222,151.0,0.00035616,30]
[404769787,1770521482832,151.0,0.00035616,30]
[404769788,1770521483438,151.0,0.00035616,30]
[404769789,1770521484052,151.0,0.00035616,30]
[404769790,1770521484644,164.03981452,0.00035616,30]
[404769791,1770521524916,201.95321856,0.00035616,30]
[404769792,1770521534929,201.5387663,0.00035616,30]
[404769800,1770522003508,238.0,0.00010686,2]
[404769801,1770522007761,500.0,0.00035259,30]
[404769802,1770522054631,500.0,0.00035259,30]
[404769803,1770522069587,500.0,0.00035259,30]
[404769804,1770522363139,500.0,0.00031799,30]
[404769805,1770522424642,250.0,0.00035616,30]
[404769806,1770522424679,332.79665948,0.00035616,30]
[404769807,1770522425272,250.0,0.00035616,30]
[404769808,1770522425311,500.0,0.00035616,30]
[404769809,1770522425869,250.0,0.00035616,30]
[404769810,1770522425949,500.0,0.00035616,30]
[404769811,1770522426468,250.0,0.00035616,30]
[404769812,1770522426537,500.0,0.00035616,30]
[404769813,1770522426910,304.11486328,0.00035616,30]
[404769814,1770522427169,250.0,0.00035616,30]
[404769815,1770522427208,250.0,0.00035616,30]
[404769816,1770522427251,500.0,0.00035616,30]
[404769817,1770522427578,250.0,0.00035616,30]
[404769818,1770522427696,250.0,0.00035616,30]
[404769819,1770522427740,500.0,0.00035616,30]
[404769820,1770522427811,250.0,0.00035616,30]
[404769821,1770522428181,250.0,0.00035616,30]
[404769822,1770522428333,250.0,0.00035616,30]
[404769823,1770522428378,500.0,0.00035616,30]
[404769824,1770522428433,250.0,0.00035616,30]
[404769825,1770522428781,250.0,0.00035616,30]
[404769826,1770522428926,250.0,0.00035616,30]
[404769827,1770522428979,500.0,0.00035616,30]
[404769828,1770522429047,250.0,0.00035616,30]
[404769829,1770522429398,250.0,0.00035616,30]
[404769830,1770522429523,250.0,0.00035616,30]
[404769831,1770522429597,500.0,0.00035616,30]
[404769832,1770522429661,250.0,0.00035616,30]
[404769833,1770522430014,250.0,0.00035616,30]
[404769834,1770522430131,250.0,0.00035616,30]
[404769835,1770522430197,500.0,0.00035616,30]
[404769836,1770522430279,250.0,0.00035616,30]
[404769837,1770522430600,250.0,0.00035616,30]
[404769838,1770522430897,280.229488,0.00035616,30]
[404769839,1770522430939,500.0,0.00035616,30]
[404769840,1770522430976,250.0,0.00035616,30]
[404769841,1770522431199,250.0,0.00035616,30]
[404769842,1770522431402,500.0,0.00035616,30]
[404769843,1770522431491,250.0,0.00035616,30]
[404769844,1770522431806,390.40574446,0.00035616,30]
[404769845,1770522431988,244.81329613,0.00035616,30]
[404769846,1770522432115,250.0,0.00035616,30]
[404769847,1770522432749,250.0,0.00035616,30]
[404769848,1770522433883,250.0,0.00035616,30]
[404769849,1770522434527,250.0,0.00035616,30]
[404769850,1770522435190,250.0,0.00035616,30]
[404769851,1770522435920,250.0,0.00035616,30]
[404769852,1770522436590,250.0,0.00035616,30]
[404769853,1770522437208,250.0,0.00035616,30]
[404769854,1770522438458,256.34429248,0.00035616,30]
[404769855,1770522438623,151.0,0.00035616,30]
[404769856,1770522439260,156.587,0.00035616,30]
[404769857,1770522439943,162.380719,0.00035616,30]
[404769858,1770522440647,168.3888056,0.00035616,30]
[404769859,1770522441488,174.61919141,0.00035616,30]
[404769860,1770522441988,181.08010149,0.00035616,30]
[404769861,1770522442605,187.78006525,0.00035616,30]
[404769862,1770522444892,194.72792766,0.00035616,30]
[404769863,1770522445510,201.93286099,0.00035616,30]
[404769864,1770522446139,209.40437684,0.00035616,30]
[404769865,1770522446796,217.15233878,0.00035616,30]
[404769866,1770522447495,225.18697532,0.00035616,30]
[404769867,1770522448140,233.51889341,0.00035616,30]
[404769868,1770522448750,242.15909246,0.00035616,30]
[404769869,1770522449411,251.11897888,0.00035616,30]
[404769870,1770522450085,260.4103811,0.00035616,30]
[404769871,1770522450690,270.0455652,0.00035616,30]
[404769872,1770522451350,280.03725112,0.00035616,30]
[404769873,1770522451990,290.39862941,0.00035616,30]
[404769874,1770522452628,301.1433787,0.00035616,30]
[404769875,1770522459412,500.0,0.00035259,30]
[404769876,1770522459735,151.0,0.00035616,30]
[404769877,1770522460357,156.587,0.00035616,30]
[404769878,1770522461235,190.00111006,0.00035616,30]
[404769884,1770522594920,500.0,0.00031799,30]
[404769885,1770522627171,577.15,0.00031799,30]
[404769900,1770522640127,-177.6377625,0.00010686,2]
[404769901,1770522640136,-376.45853679,0.00010686,2]
[404769902,1770522640146,-42.93662171,0.00010686,2]
[404769903,1770522640180,-151.68847754,0.00010686,2]
[404769904,1770522640189,-218.75540906,0.00010686,2]
[404769905,1770522640199,-161.71,0.00010686,2]
[404769906,1770522640208,-1200.0,0.00011753,2]
[404769907,1770522640217,-300.0,0.00011754,2]
[404769908,1770522640227,-300.0,0.00011754,2]
[404769909,1770522640236,-300.0,0.00011754,2]
[404769910,1770522640245,-300.0,0.00011754,2]
[404769911,1770522640254,-250.0,0.00011755,2]
[404769912,1770522640263,-250.0,0.00011755,2]
[404769913,1770522640272,-150.15898569,0.00011755,2]
[404769914,1770522640281,-193.0,0.00011755,2]
[404769915,1770522640290,-5000.0,0.00011755,2]
[404769916,1770522640304,-490.32,0.00012408,2]
[404769917,1770522640314,-887.26,0.00012408,2]
[404769918,1770522640324,-150.0,0.00012429,2]
[404769919,1770522640334,-1616.46262057,0.0001243,2]
[404769920,1770522640345,-7616.11512361,0.0001243,2]
[404769921,1770522640391,-2299.1,0.0001243,2]
[404769923,1770522644805,-634.43867938,0.0001243,2]
[404769924,1770522644914,-1861.03274421,0.0001243,2]
[404769925,1770522644930,-2425.84730336,0.0001243,2]
[404769928,1770522646007,-178.90352887,0.0001243,2]
[404769929,1770522646017,-188.2292684,0.0001243,2]
[404769930,1770522646026,-250.0,0.00012577,2]
[404769931,1770522646035,-200.0,0.00012799,2]
[404769932,1770522646045,-4082.86720273,0.00012893,2]
[404769933,1770522646112,-1894.13928336,0.00012893,2]
[404769934,1770522646124,-1000.0,0.00012893,2]
[404769983,1770522652414,574.41,0.00031799,30]
[404769984,1770522664016,500.0,0.00031799,30]
[404769985,1770522675643,500.0,0.00030399,30]
[404769986,1770522675886,500.0,0.00035259,30]
[404769987,1770522690632,151.0,0.00034904,31]
[404769988,1770522690729,500.0,0.00030399,30]
[404769989,1770522690962,500.0,0.00035259,30]
[404769990,1770522703814,151.0,0.00034904,31]
[404769991,1770522705290,151.0,0.00034904,31]
[404769992,1770522732935,151.0,0.00035616,30]
[404769993,1770522733564,156.587,0.00035616,30]
[404769994,1770522734256,162.380719,0.00035616,30]
[404769995,1770522734897,168.3888056,0.00035616,30]
[404769996,1770522735290,500.0,0.00035259,30]
[404769997,1770522735516,174.61919141,0.00035616,30]
[404769998,1770522736081,168.25917,0.00034904,31]
[404769999,1770522736158,181.08010149,0.00035616,30]
[404770000,1770522736800,187.78006525,0.00035616,30]
[404770001,1770522737410,194.72792766,0.00035616,30]
[404770002,1770522738021,201.93286099,0.00035616,30]
[404770003,1770522738677,209.40437684,0.00035616,30]
[404770004,1770522739314,217.15233878,0.00035616,30]
[404770005,1770522739992,225.18697532,0.00035616,30]
[404770006,1770522740677,233.51889341,0.00035616,30]
[404770007,1770522741339,242.15909246,0.00035616,30]
[404770008,1770522741985,251.11897888,0.00035616,30]
[404770009,1770522742687,260.4103811,0.00035616,30]
[404770010,1770522743324,270.0455652,0.00035616,30]
[404770011,1770522743949,280.03725112,0.00035616,30]
[404770012,1770522744620,290.39862941,0.00035616,30]
[404770013,1770522744941,151.0,0.0003526,31]
[404770014,1770522745219,301.1433787,0.00035616,30]
[404770015,1770522785200,632.32,0.00031799,30]
[404770016,1770522796343,500.0,0.00031799,30]
[404770017,1770522813492,500.0,0.00031799,30]
[404770018,1770522853080,300.0,0.0003561,30]
[404770019,1770523009543,265.80043,0.0003526,31]
[404770020,1770523032840,151.0,0.00035616,30]
[404770021,1770523033493,156.587,0.00035616,30]
[404770022,1770523034151,162.380719,0.00035616,30]
[404770023,1770523034762,168.3888056,0.00035616,30]
[404770024,1770523035870,174.61919141,0.00035616,30]
[404770025,1770523036478,181.08010149,0.00035616,30]
[404770026,1770523037135,187.78006525,0.00035616,30]
[404770027,1770523037780,194.72792766,0.00035616,30]
[404770028,1770523038427,201.93286099,0.00035616,30]
[404770029,1770523039055,209.40437684,0.00035616,30]
[404770030,1770523039703,217.15233878,0.00035616,30]
[404770031,1770523040360,225.18697532,0.00035616,30]
[404770032,1770523040998,233.51889341,0.00035616,30]
[404770033,1770523041677,242.15909246,0.00035616,30]
[404770034,1770523042462,251.11897888,0.00035616,30]
[404770035,1770523043276,260.4103811,0.00035616,30]
[404770036,1770523043730,270.0455652,0.00035616,30]
[404770037,1770523044374,280.03725112,0.00035616,30]
[404770038,1770523044454,500.0,0.00031799,30]
[404770039,1770523044985,151.0,0.0003526,31]
[404770040,1770523045032,290.39862941,0.00035616,30]
[404770041,1770523045733,301.1433787,0.00035616,30]
[404770042,1770523059799,406.9437856,0.00030399,30]
[404770043,1770523146381,151.0,0.0003526,31]
[404770044,1770523148339,151.0,0.0003526,31]
[404770045,1770523149794,290.414734,0.0003526,31]
[404770046,1770523149860,260.330749,0.0003526,31]
[404770047,1770523151314,290.414734,0.0003526,31]
[404770048,1770523152843,290.414734,0.0003526,31]
[404770049,1770523155055,290.414734,0.0003526,31]
[404770050,1770523221633,151.0,0.0003526,31]
[404770051,1770523227143,500.0,0.00030499,30]